bitfinex-derivatives/quotes_SOLF0:USTF0_20241203
["timestamp","ask_amount","ask_price","bid_price","bid_amount"]
[1733227482189,12.44821055,225.74,225.63,1.10862694]
[1733227482384,12.44821055,225.74,225.64,1.10862694]
[1733227482585,12.44821055,225.71,225.58,12.44821055]
[1733227482788,6.3501,225.7,225.65,2.2154]
[1733227482986,6.3501,225.7,225.58,12.44821055]
[1733227483289,6.3501,225.7,225.65,2.2153]
[1733227483790,6.3501,225.7,225.55,21.30486967]
[1733227483985,6.3501,225.7,225.56,2.88319668]
[1733227484193,6.3501,225.7,225.66,2.2153]
[1733227485782,6.3501,225.7,225.67,2.2151]
[1733227487291,6.3501,225.7,225.62,2.2156]
[1733227487492,6.3501,225.7,225.55,21.30486967]
[1733227487693,2.26,225.69,225.56,5.10105115]
[1733227487893,2.26,225.69,225.51,19.93016967]
[1733227488096,2.26,225.69,225.57,1.10902458]
[1733227488097,19.93016967,225.66,225.57,1.10902458]
[1733227488391,19.93016967,225.62,225.56,2.2162]
[1733227488697,2.26,225.61,225.48,1.3645]
[1733227488891,2.26,225.61,225.56,2.2163]
[1733227489092,4.0582,225.6,225.48,1.3645]
[1733227490395,2.26,225.59,225.48,1.3645]
[1733227490587,4.0582,225.6,225.48,1.3645]
[1733227490792,2.26,225.59,225.58,2.216]
[1733227490994,2.26,225.59,225.47,19.93016967]
[1733227491396,4.0582,225.6,225.47,19.93016967]
[1733227491597,2.26,225.59,225.47,19.93016967]
[1733227492889,2.26,225.59,225.54,2.2164]
[1733227493086,2.26,225.59,225.47,19.93016967]
[1733227493694,2.26,225.59,225.45,2.684]
[1733227494095,2.26,225.59,225.54,2.2164]
[1733227494492,2.26,225.59,225.53,2.2166]
[1733227494699,19.93016967,225.54,225.35,26.54764161]
[1733227494897,2.26,225.53,225.36,8.98141685]
[1733227495095,2.26,225.53,225.47,2.2172]
[1733227495391,2.26,225.53,225.47,1.24198131]
[1733227495592,2.26,225.53,225.36,1.3061]
[1733227495797,2.26,225.53,225.48,2.217]
[1733227495997,2.26,225.52,225.48,2.217]
[1733227497297,2.26,225.52,225.36,1.3061]
[1733227497298,2.26,225.52,225.46,2.2172]
[1733227498497,2.26,225.52,225.36,1.3061]
[1733227499097,4.4768,225.52,225.36,1.3061]
[1733227499798,4.4768,225.52,225.45,2.2174]
[1733227500193,2.26,225.52,225.46,2.2173]
[1733227500395,2.26,225.52,225.36,1.3061]
[1733227500595,2.26,225.51,225.39,19.93016967]
[1733227500901,2.26,225.51,225.43,19.93016967]
[1733227501799,2.26,225.51,225.5,2.2169]
[1733227501993,2.26,225.51,225.43,19.93016967]
[1733227502194,2.26,225.5,225.43,19.93016967]
[1733227502596,2.26,225.5,225.4,2.26]
[1733227502797,2.26,225.5,225.39,19.93016967]
[1733227503199,2.217,225.49,225.42,2.2176]
[1733227503498,2.26,225.5,225.36,1.3061]
[1733227503700,1.3775,225.49,225.36,1.3061]
[1733227504297,2.2173,225.47,225.43,2.2175]
[1733227504495,1.3775,225.49,225.43,1.24834442]
[1733227504799,2.2169,225.51,225.47,2.2172]
[1733227505004,2.26,225.5,225.39,19.93016967]
[1733227505199,2.26,225.49,225.37,2.26]
[1733227505506,2.2171,225.48,225.37,2.26]
[1733227505694,2.26,225.49,225.36,1.3061]
[1733227506403,19.93016967,225.54,225.36,1.3061]
[1733227506597,2.26,225.53,225.39,19.93016967]
[1733227506799,2.26,225.53,225.43,19.93016967]
[1733227506994,2.26,225.53,225.44,1.3483]
[1733227507301,2.26,225.53,225.51,2.2167]
[1733227507501,2.26,225.53,225.51,1.25166181]
[1733227508600,2.26,225.53,225.48,2.2171]
[1733227508802,2.2169,225.51,225.44,1.3483]
[1733227508997,2.26,225.53,225.37,2.26]
[1733227509202,2.26,225.53,225.44,2.2174]
[1733227509403,2.26,225.53,225.37,3.6019]
[1733227509404,2.217,225.5,225.37,3.6019]
[1733227509803,2.217,225.5,225.46,2.2173]
[1733227510002,2.26,225.53,225.37,3.6019]
[1733227510507,2.26,225.53,225.45,2.2173]
[1733227510807,2.26,225.53,225.37,3.6019]
[1733227510999,2.26,225.53,225.45,2.2173]
[1733227511198,2.26,225.53,225.37,3.6019]
[1733227511410,2.2169,225.5,225.37,3.6019]
[1733227511803,2.2169,225.5,225.46,2.2173]
[1733227512003,2.2169,225.51,225.46,2.2173]
[1733227513106,2.26,225.5,225.46,2.2173]
[1733227513901,2.2171,225.48,225.42,2.2176]
[1733227514608,12.47577075,225.49,225.43,2.2176]
[1733227514801,12.47577075,225.49,225.37,3.6019]
[1733227515000,2.2171,225.48,225.37,3.6019]
[1733227515204,2.2171,225.48,225.37,1.3419]
[1733227515412,2.2171,225.48,225.42,2.2176]
[1733227515807,2.2171,225.48,225.4,2.2178]
[1733227516000,2.2171,225.48,225.37,1.3419]
[1733227516499,2.2171,225.48,225.43,2.2175]
[1733227516705,2.2171,225.48,225.43,1.25499534]
[1733227518109,12.47577075,225.49,225.37,1.3419]
[1733227518305,2.26,225.49,225.38,12.47577075]
[1733227518507,2.26,225.49,225.38,14.73577075]
[1733227518809,2.2167,225.52,225.38,14.73577075]
[1733227519108,2.26,225.52,225.41,12.47577075]
[1733227519312,2.26,225.52,225.49,2.2169]
[1733227519610,2.26,225.52,225.41,12.47577075]
[1733227520109,2.26,225.52,225.49,2.217]
[1733227520312,2.26,225.52,225.41,12.47577075]
[1733227521005,4.4767,225.52,225.41,12.47577075]
[1733227521205,2.26,225.52,225.41,12.47577075]
[1733227521806,14.73577075,225.52,225.38,14.73577075]
[1733227522013,14.73577075,225.52,225.38,2.26]
[1733227523414,12.47577075,225.49,225.37,1.3419]
[1733227523610,12.47577075,225.46,225.37,1.3419]
[1733227523816,2.26,225.45,225.37,1.3419]
[1733227524012,2.2178,225.42,225.36,1.3061]
[1733227524313,2.26,225.45,225.36,1.3061]
[1733227524915,2.2176,225.43,225.39,2.218]
[1733227525113,2.26,225.45,225.36,1.3061]
[1733227525815,12.47577075,225.39,225.3,1.368]
[1733227526915,2.26,225.41,225.3,1.368]
[1733227526916,12.47577075,225.36,225.3,1.368]
[1733227527118,12.47577075,225.36,225.33,2.2185]
[1733227527914,12.47577075,225.36,225.3,1.368]
[1733227528322,14.69377075,225.39,225.3,1.368]
[1733227529822,14.69377075,225.39,225.35,2.2183]
[1733227530325,2.2186,225.33,225.29,2.2189]
[1733227530515,2.2186,225.33,225.24,1.3568]
[1733227530516,12.47577075,225.32,225.24,1.3568]
[1733227530720,12.47577075,225.35,225.24,1.3568]
[1733227531420,12.47577075,225.35,225.27,2.2191]
[1733227531624,2.26,225.39,225.27,2.26]
[1733227532025,2.26,225.39,225.37,2.2181]
[1733227532226,12.47577075,225.41,225.27,2.26]
[1733227532425,12.47577075,225.38,225.3,2.2188]
[1733227532628,12.47577075,225.38,225.27,2.26]
[1733227533429,2.2182,225.37,225.27,2.26]
[1733227534031,12.47577075,225.38,225.27,2.26]
[1733227535134,14.69387075,225.38,225.27,2.26]
[1733227535929,14.69387075,225.38,225.34,2.2184]
[1733227536129,12.47577075,225.41,225.27,14.73577075]
[1733227537331,12.47577075,225.41,225.37,2.2181]
[1733227537532,12.47577075,225.41,225.27,14.73577075]
[1733227537927,12.47577075,225.41,225.38,2.2181]
[1733227538630,2.26,225.43,225.33,2.22]
[1733227538830,12.47577075,225.47,225.34,1.3607]
[1733227539026,2.6459,225.48,225.34,4.0028]
[1733227539027,1.2644,225.48,225.34,4.0028]
[1733227539227,14.69577075,225.5,225.36,12.47577075]
[1733227539433,16.91277075,225.5,225.46,2.2172]
[1733227539634,12.47577075,225.5,225.39,2.22]
[1733227540234,12.47577075,225.53,225.39,14.69577075]
[1733227540531,12.47577075,225.53,225.5,2.2169]
[1733227540727,12.47577075,225.53,225.5,1.26754336]
[1733227541437,2.22,225.54,225.44,2.22]
[1733227541732,12.47577075,225.56,225.45,1.305]
[1733227542235,2.2164,225.55,225.45,1.305]
[1733227543132,2.2165,225.54,225.45,1.305]
[1733227543336,2.2165,225.54,225.49,2.2169]
[1733227543931,12.47577075,225.59,225.45,13.78077075]
[1733227544135,12.47577075,225.59,225.45,15.11627075]
[1733227544733,2.2162,225.57,225.53,2.2166]
[1733227544935,2.2162,225.57,225.45,15.11627075]
[1733227545734,12.47577075,225.59,225.45,15.11627075]
[1733227546033,12.47577075,225.62,225.48,12.47577075]
[1733227546226,12.47577075,225.62,225.49,2.22]
[1733227546433,44.33063854,225.63,225.49,2.22]
[1733227546632,12.47577075,225.59,225.49,2.22]
[1733227547028,2.2161,225.58,225.53,2.2165]
[1733227547232,12.47577075,225.59,225.49,2.22]
[1733227547635,12.47577075,225.59,225.55,2.2163]
[1733227548437,2.2165,225.55,225.49,2.217]
[1733227548633,12.47577075,225.56,225.49,2.217]
[1733227548938,12.47577075,225.56,225.45,2.6405]
[1733227549841,12.47577075,225.59,225.45,15.11627075]
[1733227550236,14.69187075,225.59,225.53,2.2166]
[1733227550441,12.47577075,225.59,225.48,2.22]
[1733227551543,2.22,225.6,225.48,2.22]
[1733227552336,2.22,225.6,225.51,2.2167]
[1733227552538,12.47577075,225.62,225.48,14.69577075]
[1733227553040,12.47577075,225.62,225.58,2.2161]
[1733227553238,307.55547248,225.71,225.6,12.47577075]
[1733227553437,307.55547248,225.71,225.61,2.22]
[1733227554145,2.2147,225.73,225.68,2.2151]
[1733227554345,12.47577075,225.75,225.61,2.22]
[1733227554542,12.47577075,225.75,225.65,2.2154]
[1733227554744,1.2798,225.76,225.66,2.22]
[1733227555046,2.22,225.81,225.67,2.22]
[1733227555938,2.2141,225.79,225.73,2.2146]
[1733227556141,2.2141,225.79,225.73,1.27422779]
[1733227556744,2.2141,225.78,225.73,1.27422779]
[1733227557139,12.47577075,225.78,225.7,2.2148]
[1733227557439,2.2145,225.75,225.68,2.22]
[1733227557640,12.47577075,225.78,225.66,2.22]
[1733227557840,12.47577075,225.78,225.71,2.2147]
[1733227558045,12.47577075,225.78,225.66,2.22]
[1733227558046,14.68997075,225.78,225.66,2.22]
[1733227558445,14.68997075,225.78,225.71,2.2147]
[1733227558645,2.2143,225.77,225.71,2.2147]
[1733227558847,2.2143,225.77,225.71,2.2148]
[1733227559239,14.68997075,225.78,225.66,2.22]
[1733227559443,12.47577075,225.78,225.66,2.22]
[1733227560439,2.2143,225.77,225.66,2.22]
[1733227560843,12.47577075,225.78,225.66,2.22]
[1733227561748,12.47577075,225.78,225.71,2.2148]
[1733227562052,12.47577075,225.78,225.71,1.27746533]
[1733227562951,2.2143,225.76,225.71,1.27746533]
[1733227563258,2.2143,225.76,225.7,2.2149]
[1733227563758,12.47577075,225.75,225.65,2.22]
[1733227564056,13.76447075,225.75,225.65,2.22]
[1733227564257,2.2148,225.72,225.67,2.2152]
[1733227564454,2.2148,225.72,225.67,1.28077282]
[1733227565255,15.98447075,225.75,225.68,2.2151]
[1733227565256,2.2146,225.73,225.68,2.2151]
[1733227565556,12.47577075,225.72,225.62,1.3615]
[1733227565758,2.215,225.69,225.64,2.2155]
[1733227565954,12.47577075,225.72,225.63,2.22]
[1733227566458,2.2148,225.72,225.65,2.2154]
[1733227566654,12.47577075,225.74,225.63,1.28639506]
[1733227567660,2.2147,225.73,225.68,2.2151]
[1733227567855,12.47577075,225.74,225.63,1.28639506]
[1733227568160,1.2887,225.75,225.7,2.2149]
[1733227568458,1.2887,225.75,225.7,1.28662086]
[1733227568855,1.2887,225.75,225.63,13.76216581]
[1733227569061,2.24,225.79,225.63,13.76216581]
[1733227569562,2.2142,225.78,225.67,2.2151]
[1733227569861,2.2142,225.78,225.63,13.76216581]
[1733227569862,2.2142,225.78,225.68,2.24]
[1733227570059,2.2144,225.76,225.71,2.2148]
[1733227570265,12.47577075,225.77,225.71,2.2148]
[1733227570461,12.47577075,225.77,225.71,1.29002837]
[1733227571059,12.47577075,225.77,225.7,2.2149]
[1733227571262,12.47577075,225.77,225.65,2.24]
[1733227571767,2.2146,225.73,225.69,2.215]
[1733227572356,2.2146,225.73,225.69,1.29316817]
[1733227573361,12.47577075,225.75,225.65,2.24]
[1733227573863,2.24,225.74,225.65,2.24]
[1733227574263,2.2149,225.71,225.65,2.24]
[1733227574570,2.24,225.74,225.65,2.24]
[1733227574764,2.2147,225.72,225.67,2.2152]
[1733227574959,2.24,225.74,225.67,1.29625433]
[1733227576063,2.24,225.74,225.6,12.47577075]
[1733227576369,12.47577075,225.72,225.62,2.24]
[1733227576571,2.2151,225.69,225.64,2.2154]
[1733227577067,2.2151,225.69,225.65,2.2154]
[1733227577471,12.47577075,225.72,225.62,2.24]
[1733227577765,2.24,225.74,225.67,2.2152]
[1733227577965,2.2148,225.72,225.62,2.24]
[1733227578164,2.24,225.74,225.62,2.24]
[1733227578366,2.24,225.74,225.63,12.47577075]
[1733227578570,4.4546,225.74,225.63,12.47577075]
[1733227578771,2.2146,225.74,225.63,12.47577075]
[1733227579066,12.47577075,225.75,225.62,2.24]
[1733227579365,12.47577075,225.75,225.67,2.2152]
[1733227579572,12.47577075,225.75,225.62,2.24]
[1733227579767,2.2147,225.72,225.68,2.2151]
[1733227580162,3.6179,225.78,225.63,12.47577075]
[1733227580461,3.6179,225.78,225.7,2.2149]
[1733227580462,2.2146,225.74,225.7,2.2149]
[1733227581464,2.2146,225.74,225.7,1.30549275]
[1733227582168,12.47577075,225.77,225.67,2.24]
[1733227582471,2.2142,225.78,225.73,2.2146]
[1733227582662,12.47577075,225.8,225.67,2.24]
[1733227582863,2.214,225.8,225.75,2.2144]
[1733227583064,2.214,225.8,225.69,12.47577075]
[1733227583471,2.214,225.8,225.75,2.2144]
[1733227583669,2.214,225.8,225.75,1.31164892]
[1733227584771,2.214,225.8,225.76,2.2143]
[1733227585173,3.5561,225.81,225.76,2.2143]
[1733227585671,2.2135,225.85,225.72,14.71577075]
[1733227586272,3.5392,225.87,225.72,14.71577075]
[1733227586770,2.2136,225.85,225.8,2.2139]
[1733227586971,3.5392,225.87,225.8,2.2139]
[1733227587672,3.5392,225.87,225.77,2.24]
[1733227588467,2.2136,225.84,225.77,2.24]
[1733227589774,2.2136,225.84,225.8,2.214]
[1733227589976,3.5392,225.87,225.77,2.24]
[1733227590178,12.47577075,225.86,225.77,4.4542]
[1733227590474,12.47577075,225.86,225.77,2.24]
[1733227591175,14.68927075,225.86,225.77,2.24]
[1733227591366,3.5392,225.87,225.81,2.2138]
[1733227591567,1.2992,225.87,225.77,2.24]
[1733227591767,2.2132,225.88,225.77,2.24]
[1733227591972,2.2132,225.88,225.84,2.2136]
[1733227592274,1.2706,225.89,225.84,2.2136]
[1733227592469,3.4837,225.89,225.84,2.2136]
[1733227592669,12.47577075,225.92,225.87,2.2132]
[1733227592878,3.5432,225.93,225.83,12.47577075]
[1733227593084,307.55547248,225.94,225.83,12.47577075]
[1733227593374,58.0873446,225.98,225.83,13.77507075]
[1733227593582,58.0873446,225.98,225.82,2.24]
[1733227593771,58.0873446,225.98,225.82,14.71577075]
[1733227593976,58.0873446,225.98,225.87,2.2132]
[1733227594269,2.2128,225.93,225.87,2.2132]
[1733227594579,12.47577075,225.92,225.81,2.24]
[1733227594776,2.2132,225.88,225.81,2.24]
[1733227594969,12.47577075,225.92,225.81,2.24]
[1733227595174,2.2132,225.88,225.82,2.2138]
[1733227595374,14.71577075,225.92,225.82,2.2138]
[1733227595773,2.2134,225.87,225.82,2.2138]
[1733227595978,14.71577075,225.92,225.81,2.24]
[1733227596276,12.47577075,225.86,225.73,2.6202]
[1733227596475,14.71577075,225.86,225.73,2.6202]
[1733227596674,14.71577075,225.86,225.75,2.2145]
[1733227596675,1.36,225.85,225.75,2.2145]
[1733227597175,2.2141,225.8,225.75,2.2145]
[1733227597476,2.2141,225.8,225.73,2.6202]
[1733227597477,1.36,225.85,225.76,2.2143]
[1733227598178,1.36,225.85,225.75,2.2144]
[1733227598481,1.36,225.85,225.73,1.2993]
[1733227598779,2.2139,225.81,225.76,2.2143]
[1733227600387,1.36,225.85,225.74,12.47577075]
[1733227600576,14.69577075,225.86,225.74,12.47577075]
[1733227600880,2.2137,225.83,225.74,12.47577075]
[1733227601482,14.69577075,225.86,225.74,12.47577075]
[1733227601680,2.22,225.86,225.74,12.47577075]
[1733227602378,14.69577075,225.86,225.74,12.47577075]
[1733227602783,2.2138,225.82,225.77,2.2143]
[1733227603575,14.69577075,225.86,225.75,2.2144]
[1733227604383,2.214,225.8,225.75,2.2144]
[1733227604885,2.214,225.8,225.73,1.2993]
[1733227604886,2.214,225.8,225.76,2.2143]
[1733227605681,2.2143,225.77,225.73,2.2146]
[1733227606184,12.47577075,225.83,225.7,2.22]
[1733227606381,12.47577075,225.83,225.68,12.47577075]
[1733227606382,2.2141,225.79,225.74,2.2145]
[1733227606586,2.2141,225.79,225.72,2.22]
[1733227606977,2.2142,225.78,225.74,2.2145]
[1733227607782,12.47577075,225.83,225.72,2.22]
[1733227607980,1.2628,225.82,225.72,2.22]
[1733227608584,2.2144,225.76,225.72,4.4347]
[1733227608784,1.2628,225.82,225.72,4.4347]
[1733227610083,2.2143,225.77,225.72,4.4347]
[1733227610284,12.47577075,225.8,225.72,2.22]
[1733227610787,2.2145,225.75,225.72,2.22]
[1733227611482,12.47577075,225.8,225.72,2.22]
[1733227612185,2.2144,225.76,225.72,2.22]
[1733227612884,2.2144,225.76,225.71,2.2148]
[1733227613284,2.2144,225.76,225.72,2.2147]
[1733227614683,2.2145,225.75,225.7,2.2149]
[1733227614891,1.3329,225.81,225.69,2.22]
[1733227615283,2.2141,225.79,225.74,2.2145]
[1733227616183,2.2144,225.76,225.69,2.22]
[1733227616387,14.69577075,225.8,225.69,2.22]
[1733227617386,16.89057585,225.8,225.69,2.22]
[1733227617586,2.215,225.7,225.66,2.2153]
[1733227617792,14.69577075,225.74,225.64,39.71851979]
[1733227617989,14.69577075,225.74,225.62,2.22]
[1733227618194,2.2153,225.66,225.62,4.4357]
[1733227618392,2.2153,225.66,225.58,3.5323]
[1733227618589,2.2153,225.66,225.58,1.3123]
[1733227618892,2.2154,225.66,225.58,3.5323]
[1733227619090,12.47577075,225.71,225.58,3.5323]
[1733227619790,12.47577075,225.68,225.57,2.22]
[1733227619984,2.22,225.67,225.57,2.22]
[1733227620185,2.22,225.67,225.59,2.216]
[1733227620892,2.2156,225.64,225.59,2.216]
[1733227621687,2.22,225.67,225.55,2.22]
[1733227621889,2.2159,225.61,225.55,2.22]
[1733227622092,12.47577075,225.65,225.51,1.3123]
[1733227622390,2.2164,225.55,225.48,1.3895]
[1733227622593,2.22,225.67,225.45,2.22]
[1733227622594,12.47577075,225.56,225.45,2.22]
[1733227622890,2.2164,225.55,225.48,2.2171]
[1733227623084,12.47577075,225.62,225.46,12.47577075]
[1733227623289,2.22,225.61,225.49,12.47577075]
[1733227623488,2.2161,225.59,225.52,2.2167]
[1733227623891,12.47577075,225.62,225.49,12.47577075]
[1733227624094,2.22,225.64,225.57,2.2161]
[1733227624293,2.22,225.64,225.52,12.47577075]
[1733227626101,2.2158,225.62,225.52,12.47577075]
[1733227626599,2.2158,225.62,225.54,2.2165]
[1733227626790,2.22,225.64,225.52,12.47577075]
[1733227626997,2.22,225.64,225.53,1.3571]
[1733227627300,2.2157,225.62,225.54,2.2165]
[1733227627890,2.22,225.64,225.52,12.47577075]
[1733227628093,12.47577075,225.62,225.5,2.22]
[1733227628502,12.47577075,225.59,225.47,1.3571]
[1733227628703,2.2,225.58,225.47,1.3571]
[1733227628901,2.2,225.58,225.45,2.2]
[1733227629103,12.47577075,225.56,225.45,2.2]
[1733227629410,12.47577075,225.56,225.44,4.4174]
[1733227629798,12.47577075,225.56,225.45,2.2173]
[1733227630008,12.47577075,225.56,225.44,2.2]
[1733227630302,2.2171,225.48,225.41,3.5571]
[1733227630902,14.69267075,225.5,225.41,5.7749]
[1733227631103,12.47577075,225.5,225.41,5.7749]
[1733227631507,2.2173,225.46,225.38,2.2181]
[1733227631698,2.2173,225.46,225.33,1.3468]
[1733227631699,12.47577075,225.47,225.36,2.2]
[1733227631897,14.67577075,225.47,225.36,2.2]
[1733227632301,2.2,225.47,225.36,2.2]
[1733227632807,2.2174,225.45,225.38,2.2181]
[1733227634004,2.2174,225.45,225.36,4.4182]
[1733227634206,2.2177,225.42,225.36,2.2]
[1733227634406,14.67577075,225.47,225.36,2.2]
[1733227634899,2.2177,225.42,225.36,2.2]
[1733227638610,2.2,225.48,225.36,14.67577075]
[1733227639008,2.6577,225.51,225.39,12.47577075]
[1733227639205,2.2,225.54,225.42,12.47577075]
[1733227639400,2.2,225.54,225.43,2.2]
[1733227639801,2.217,225.49,225.43,2.2]
[1733227640205,2.2,225.54,225.43,2.2]
[1733227640714,0.22637,225.54,225.43,2.2]
[1733227641006,0.22637,225.54,225.44,4.0979]
[1733227641908,2.2167,225.53,225.46,2.2172]
[1733227642303,2.2167,225.52,225.46,2.2172]
[1733227642707,0.22637,225.54,225.46,2.2172]
[1733227642916,2.2169,225.51,225.44,6.3153]
[1733227643211,2.2169,225.51,225.44,4.0979]
[1733227644605,2.2169,225.51,225.45,2.2174]
[1733227645211,2.2169,225.5,225.45,2.2174]
[1733227647416,2.2169,225.5,225.44,4.0979]
[1733227648009,2.2171,225.48,225.44,6.2979]
[1733227649006,2.2171,225.48,225.44,8.5154]
[1733227649513,0.22637,225.54,225.44,6.2979]
[1733227649715,0.22637,225.54,225.46,2.2172]
[1733227649911,2.217,225.5,225.44,6.2979]
[1733227650214,12.47577075,225.53,225.44,4.9157]
[1733227651010,2.217,225.48,225.44,7.1331]
[1733227651413,12.47577075,225.53,225.44,4.9157]
[1733227651715,0.22637,225.54,225.41,2.2]
[1733227651716,12.47577075,225.5,225.41,2.2]
[1733227651917,12.47577075,225.5,225.38,2.2]
[1733227652219,12.47577075,225.47,225.38,2.2]
[1733227653216,12.47577075,225.44,225.34,2.6255]
[1733227653611,2.2181,225.37,225.34,2.6255]
[1733227654613,2.2181,225.37,225.22,0.28578806]
[1733227654614,12.47577075,225.41,225.31,2.2186]
[1733227654814,12.47577075,225.41,225.3,2.2]
[1733227655111,2.218,225.38,225.33,2.2183]
[1733227657020,2.218,225.37,225.33,2.2183]
[1733227657823,2.2179,225.39,225.34,2.2182]
[1733227658022,2.26,225.46,225.33,12.47577075]
[1733227658218,12.47577075,225.47,225.35,2.26]
[1733227658418,12.47577075,225.47,225.36,1.1100036]
[1733227658616,12.47577075,225.47,225.35,2.26]
[1733227658813,12.47577075,225.47,225.36,1.10997049]
[1733227659020,2.2178,225.4,225.36,2.2181]
[1733227659617,12.47577075,225.47,225.35,2.26]
[1733227659822,2.218,225.38,225.35,2.26]
[1733227660319,2.2178,225.4,225.35,2.26]
[1733227660514,12.47577075,225.44,225.35,2.26]
[1733227661017,2.2178,225.4,225.36,2.2181]
[1733227662316,2.2179,225.39,225.35,2.26]
[1733227662521,2.2179,225.39,225.36,1.11007287]
[1733227662713,2.2179,225.39,225.35,2.26]
[1733227663321,2.218,225.38,225.35,2.26]
[1733227663518,12.47577075,225.41,225.28,39.79048617]
[1733227663714,12.47577075,225.41,225.29,7.36689774]
[1733227663916,12.47577075,225.38,225.3,5.10510742]
[1733227664113,12.47577075,225.38,225.31,1.11019516]
[1733227664313,12.47577075,225.38,225.32,1.11019516]
[1733227664526,12.47577075,225.38,225.28,44.26928617]
[1733227664728,12.47577075,225.38,225.29,1.11033937]
[1733227664930,2.2186,225.31,225.28,42.05048617]
[1733227665222,12.47577075,225.35,225.28,42.05048617]
[1733227665619,2.2187,225.31,225.28,42.05048617]
[1733227665915,2.26,225.37,225.28,42.05048617]
[1733227666119,2.2185,225.33,225.29,2.2187]
[1733227666525,2.26,225.37,225.29,2.2187]
[1733227666722,2.2183,225.35,225.3,2.2187]
[1733227667628,2.2184,225.34,225.3,2.2187]
[1733227667824,1.3568,225.41,225.28,54.52625692]
[1733227668322,2.218,225.38,225.32,2.2184]
[1733227668824,1.3568,225.41,225.34,2.2183]
[1733227669526,2.2179,225.39,225.34,2.2183]
[1733227670319,1.3568,225.41,225.34,2.2183]
[1733227670520,2.218,225.38,225.34,2.2183]
[1733227672131,2.218,225.38,225.33,4.4784]
[1733227672727,2.218,225.38,225.34,2.2183]
[1733227673131,12.47577075,225.4,225.33,2.26]
[1733227673327,12.47577075,225.4,225.28,39.79048617]
[1733227673328,12.47577075,225.4,225.3,2.2187]
[1733227673637,2.2184,225.34,225.28,39.79048617]
[1733227673828,2.2184,225.34,225.28,42.05048617]
[1733227674023,2.2184,225.34,225.29,2.2188]
[1733227674228,2.2184,225.34,225.28,42.05048617]
[1733227675132,2.2184,225.34,225.3,2.2187]
[1733227678233,2.2183,225.35,225.31,2.2186]
[1733227678831,14.73577075,225.4,225.33,2.2184]
[1733227678832,2.2181,225.37,225.33,2.2184]
[1733227681033,14.73577075,225.4,225.28,42.05048617]
[1733227681232,12.47577075,225.37,225.28,42.05048617]
[1733227681637,2.2184,225.34,225.28,42.05048617]
[1733227681935,12.47577075,225.37,225.28,42.05048617]
[1733227682130,2.2188,225.3,225.26,2.219]
[1733227682337,12.47577075,225.34,225.25,2.26]
[1733227682634,2.2187,225.31,225.27,2.219]
[1733227683031,12.47577075,225.34,225.27,2.219]
[1733227683237,2.2188,225.29,225.25,4.4792]
[1733227683432,2.2188,225.29,225.25,2.26]
[1733227684430,12.47577075,225.34,225.26,2.219]
[1733227684431,2.2186,225.32,225.26,2.219]
[1733227684645,12.47577075,225.34,225.26,2.219]
[1733227685431,12.47577075,225.34,225.27,2.219]
[1733227685641,12.47577075,225.34,225.25,2.26]
[1733227685642,12.47577075,225.39,225.25,2.26]
[1733227685835,2.2185,225.33,225.25,2.26]
[1733227686236,2.218,225.38,225.25,14.73577075]
[1733227686445,60.46318746,225.41,225.25,14.73577075]
[1733227686836,12.47577075,225.38,225.25,14.73577075]
[1733227687641,2.2184,225.34,225.3,2.2187]
[1733227687933,2.2184,225.34,225.25,14.73577075]
[1733227688134,12.47577075,225.38,225.25,14.73577075]